[Event "*** SCC Grand Prix: Titled Tuesday Blitz"]
[Site "Chess.com"]
[Date "2020.08.25"]
[Round "8"]
[White "dopolian"]
[Black "giantslayer83"]
[Result "0-1"]
[WhiteElo "2480"]
[BlackElo "2702"]
[TimeControl "180+1"]
[EndTime "11:36:21 PDT"]
[Termination "giantslayer83 won by resignation"]

1. e4 {[%clk 0:03:00.9]} 1... c6 {[%clk 0:03:00.1]} 2. Nc3 {[%clk 0:03:00.4]}
2... d5 {[%clk 0:03:01]} 3. Nf3 {[%clk 0:03:00.7]} 3... dxe4 {[%clk 0:02:59.6]}
4. Nxe4 {[%clk 0:03:01.6]} 4... Nf6 {[%clk 0:03:00.4]} 5. Nxf6+ {[%clk
0:03:02.1]} 5... exf6 {[%clk 0:03:01.3]} 6. d4 {[%clk 0:03:02.6]} 6... Bd6
{[%clk 0:02:51.4]} 7. Be2 {[%clk 0:03:00.6]} 7... O-O {[%clk 0:02:51.1]} 8. Be3
{[%clk 0:03:00.3]} 8... f5 {[%clk 0:02:49]} 9. Qd2 {[%clk 0:02:56.3]} 9... Nd7
{[%clk 0:02:49.2]} 10. O-O-O {[%clk 0:02:52.6]} 10... Nf6 {[%clk 0:02:49.2]} 11.
Ne5 {[%clk 0:02:45.9]} 11... Nd5 {[%clk 0:02:37.8]} 12. Bc4 {[%clk 0:02:34.5]}
12... Re8 {[%clk 0:02:12.2]} 13. Bxd5 {[%clk 0:02:22]} 13... cxd5 {[%clk
0:02:13.1]} 14. Bf4 {[%clk 0:02:22.1]} 14... f6 {[%clk 0:02:08]} 15. Nd3 {[%clk
0:02:21.4]} 15... Bf8 {[%clk 0:02:06.6]} 16. h4 {[%clk 0:02:18.5]} 16... Bd7
{[%clk 0:02:05.7]} 17. h5 {[%clk 0:02:16.9]} 17... Qb6 {[%clk 0:02:01]} 18. c3
{[%clk 0:02:11.5]} 18... Bb5 {[%clk 0:01:51]} 19. Rhe1 {[%clk 0:02:06.9]} 19...
Qa6 {[%clk 0:01:46.5]} 20. Rxe8 {[%clk 0:01:59.4]} 20... Rxe8 {[%clk 0:01:44.1]}
21. Kb1 {[%clk 0:01:47.9]} 21... Re4 {[%clk 0:01:28.2]} 22. g3 {[%clk
0:01:41.9]} 22... b6 {[%clk 0:01:27.2]} 23. Nc1 {[%clk 0:01:26.9]} 23... Kf7
{[%clk 0:01:26]} 24. Re1 {[%clk 0:01:25.4]} 24... Qc8 {[%clk 0:01:22.4]} 25. f3
{[%clk 0:01:24.6]} 25... Re6 {[%clk 0:01:16.9]} 26. Rxe6 {[%clk 0:01:21.3]}
26... Qxe6 {[%clk 0:01:17.8]} 27. Qe3 {[%clk 0:01:21.4]} 27... g5 {[%clk
0:01:14.6]} 28. hxg6+ {[%clk 0:01:18.4]} 28... hxg6 {[%clk 0:01:14.2]} 29. Qxe6+
{[%clk 0:01:12.4]} 29... Kxe6 {[%clk 0:01:15.1]} 30. Bb8 {[%clk 0:01:12.9]}
30... a6 {[%clk 0:01:09.5]} 31. Bc7 {[%clk 0:01:12.4]} 31... Bf1 {[%clk
0:01:05.3]} 32. Bxb6 {[%clk 0:01:09.7]} 32... Bd6 {[%clk 0:01:05.5]} 33. f4
{[%clk 0:01:09.8]} 33... g5 {[%clk 0:01:05.9]} 34. Bc5 {[%clk 0:01:04.2]} 34...
Bc7 {[%clk 0:01:02.2]} 35. Kc2 {[%clk 0:00:56.8]} 35... gxf4 {[%clk 0:01:01.9]}
36. gxf4 {[%clk 0:00:57.7]} 36... Bxf4 {[%clk 0:01:02.5]} 37. Nd3 {[%clk
0:00:58.1]} 37... Be3 {[%clk 0:01:00.3]} 38. a4 {[%clk 0:00:52.7]} 38... f4
{[%clk 0:01:00.4]} 39. Ne1 {[%clk 0:00:07]} 39... Be2 {[%clk 0:00:57.2]} 40. Ng2
{[%clk 0:00:07.3]} 40... Kf5 {[%clk 0:00:54.1]} 41. Nxe3+ {[%clk 0:00:06.7]}
41... fxe3 {[%clk 0:00:54]} 42. Bd6 {[%clk 0:00:06.9]} 42... Ke4 {[%clk
0:00:53.6]} 43. b4 {[%clk 0:00:04.9]} 43... f5 {[%clk 0:00:51.3]} 44. Bg3 {[%clk
0:00:03.5]} 44... f4 {[%clk 0:00:51]} 45. Bh4 {[%clk 0:00:04.1]} 45... f3 {[%clk
0:00:51.2]} 46. b5 {[%clk 0:00:02.4]} 46... axb5 {[%clk 0:00:51.1]} 47. a5
{[%clk 0:00:03.3]} 47... b4 {[%clk 0:00:51.6]} 48. cxb4 {[%clk 0:00:03]} 48...
f2 {[%clk 0:00:51.8]} 0-1

[Event "*** SCC Grand Prix: Titled Tuesday Blitz"]
[Site "Chess.com"]
[Date "2020.08.25"]
[Round "8"]
[White "dpopadic"]
[Black "Gusarov91"]
[Result "0-1"]
[WhiteElo "2354"]
[BlackElo "2632"]
[TimeControl "180+1"]
[EndTime "11:36:21 PDT"]
[Termination "Gusarov91 won by resignation"]

1. e4 {[%clk 0:03:00.9]} 1... c6 {[%clk 0:02:55.3]} 2. d4 {[%clk 0:03:00.2]}
2... Na6 {[%clk 0:02:54.5]} 3. Nf3 {[%clk 0:02:53.2]} 3... Nc7 {[%clk
0:02:54.3]} 4. c3 {[%clk 0:02:48.4]} 4... d5 {[%clk 0:02:53.9]} 5. e5 {[%clk
0:02:43.2]} 5... Bg4 {[%clk 0:02:53.6]} 6. h3 {[%clk 0:02:42.9]} 6... Bh5 {[%clk
0:02:52.7]} 7. Be2 {[%clk 0:02:42.5]} 7... e6 {[%clk 0:02:52.9]} 8. Be3 {[%clk
0:02:18.1]} 8... Ne7 {[%clk 0:02:51.6]} 9. O-O {[%clk 0:02:17.1]} 9... Nf5
{[%clk 0:02:41.6]} 10. Nh2 {[%clk 0:02:13.9]} 10... Bxe2 {[%clk 0:02:39.2]} 11.
Qxe2 {[%clk 0:02:13]} 11... Nxe3 {[%clk 0:02:36.7]} 12. fxe3 {[%clk 0:02:11.5]}
12... Be7 {[%clk 0:02:36.6]} 13. Nd2 {[%clk 0:02:10]} 13... O-O {[%clk
0:02:35.7]} 14. Ng4 {[%clk 0:02:09.1]} 14... f5 {[%clk 0:02:34.2]} 15. exf6
{[%clk 0:02:08.4]} 15... Bxf6 {[%clk 0:02:34.3]} 16. Nxf6+ {[%clk 0:02:08]}
16... Rxf6 {[%clk 0:02:33.8]} 17. Rxf6 {[%clk 0:02:07.9]} 17... Qxf6 {[%clk
0:02:34]} 18. Rf1 {[%clk 0:02:07.1]} 18... Qe7 {[%clk 0:02:26.1]} 19. e4 {[%clk
0:02:07]} 19... Rf8 {[%clk 0:02:25]} 20. e5 {[%clk 0:02:00.3]} 20... Qg5 {[%clk
0:02:19]} 21. Rxf8+ {[%clk 0:01:46.5]} 21... Kxf8 {[%clk 0:02:18.7]} 22. Nf3
{[%clk 0:01:46.4]} 22... Qf4 {[%clk 0:02:18.4]} 23. Qf2 {[%clk 0:01:46.2]} 23...
b6 {[%clk 0:02:12.2]} 24. Ng5 {[%clk 0:01:28]} 24... Qxf2+ {[%clk 0:02:11.9]}
25. Kxf2 {[%clk 0:01:28.1]} 25... h6 {[%clk 0:02:12.5]} 26. Nf3 {[%clk
0:01:27.6]} 26... c5 {[%clk 0:02:11.1]} 27. Ke3 {[%clk 0:01:26.8]} 27... Ke7
{[%clk 0:02:09.1]} 28. g4 {[%clk 0:01:25.4]} 28... Na6 {[%clk 0:02:00.7]} 29. a3
{[%clk 0:01:18.9]} 29... Nb8 {[%clk 0:01:59.9]} 30. h4 {[%clk 0:01:13.6]} 30...
a5 {[%clk 0:01:56.3]} 31. h5 {[%clk 0:01:13.3]} 31... Nc6 {[%clk 0:01:55.6]} 32.
g5 {[%clk 0:01:11.9]} 32... hxg5 {[%clk 0:01:53.8]} 33. Nxg5 {[%clk 0:01:11.8]}
33... a4 {[%clk 0:01:52.6]} 34. Nf3 {[%clk 0:01:08.1]} 34... Na5 {[%clk
0:01:52.5]} 35. Nd2 {[%clk 0:01:07.7]} 35... Kf7 {[%clk 0:01:51.5]} 36. Kd3
{[%clk 0:01:05.5]} 36... Kg8 {[%clk 0:01:46]} 37. Nf3 {[%clk 0:00:48.9]} 37...
Nc4 {[%clk 0:01:44.6]} 38. Ng5 {[%clk 0:00:39.3]} 38... Nxb2+ {[%clk 0:01:44.5]}
39. Kc2 {[%clk 0:00:38.8]} 39... Nc4 {[%clk 0:01:44.6]} 40. Nxe6 {[%clk
0:00:38.4]} 40... Nxa3+ {[%clk 0:01:43.8]} 41. Kb2 {[%clk 0:00:36.9]} 41... Nc4+
{[%clk 0:01:43.3]} 42. Ka2 {[%clk 0:00:36.7]} 42... cxd4 {[%clk 0:01:42.2]} 43.
cxd4 {[%clk 0:00:36]} 43... b5 {[%clk 0:01:38.8]} 44. Nc7 {[%clk 0:00:35.2]}
44... b4 {[%clk 0:01:38.8]} 45. Nxd5 {[%clk 0:00:35.3]} 45... b3+ {[%clk
0:01:39]} 46. Kb1 {[%clk 0:00:35.5]} 46... a3 {[%clk 0:01:39]} 47. Nc3 {[%clk
0:00:33.9]} 47... Nd2+ {[%clk 0:01:25.5]} 48. Kc1 {[%clk 0:00:29.5]} 48... Nf3
{[%clk 0:01:24.7]} 49. Nb5 {[%clk 0:00:22.6]} 49... a2 {[%clk 0:01:11.8]} 50.
Kb2 {[%clk 0:00:20.5]} 50... Kf7 {[%clk 0:01:12.1]} 51. d5 {[%clk 0:00:12]}
51... Nxe5 {[%clk 0:01:11.7]} 52. Nc3 {[%clk 0:00:10]} 52... Nd3+ {[%clk
0:01:10.4]} 53. Ka1 {[%clk 0:00:07.2]} 53... Nb4 {[%clk 0:01:10.2]} 54. d6
{[%clk 0:00:04.5]} 54... Nc2+ {[%clk 0:01:08.5]} 0-1

[Event "*** SCC Grand Prix: Titled Tuesday Blitz"]
[Site "Chess.com"]
[Date "2020.08.25"]
[Round "8"]
[White "Korchmar_Vasiliy"]
[Black "Vuk2000"]
[Result "0-1"]
[WhiteElo "2609"]
[BlackElo "2735"]
[TimeControl "180+1"]
[EndTime "11:36:29 PDT"]
[Termination "Vuk2000 won on time"]

1. d4 {[%clk 0:03:00.9]} 1... Nf6 {[%clk 0:02:59]} 2. Nf3 {[%clk 0:03:01.4]}
2... e6 {[%clk 0:02:59.1]} 3. Bf4 {[%clk 0:03:01.6]} 3... d5 {[%clk 0:02:58.9]}
4. e3 {[%clk 0:03:01.6]} 4... Bd6 {[%clk 0:02:59.3]} 5. Bg3 {[%clk 0:03:01.6]}
5... O-O {[%clk 0:02:59.5]} 6. Nbd2 {[%clk 0:03:01.2]} 6... c5 {[%clk
0:02:59.9]} 7. c3 {[%clk 0:03:01.2]} 7... Qc7 {[%clk 0:03:00.2]} 8. Bd3 {[%clk
0:02:41.3]} 8... Nbd7 {[%clk 0:02:59.3]} 9. e4 {[%clk 0:02:41.7]} 9... cxd4
{[%clk 0:02:52.7]} 10. Nxd4 {[%clk 0:02:40.3]} 10... Bxg3 {[%clk 0:02:37.4]} 11.
hxg3 {[%clk 0:02:39.7]} 11... Nc5 {[%clk 0:02:37.6]} 12. Qe2 {[%clk 0:02:33.6]}
12... e5 {[%clk 0:01:35.3]} 13. N4b3 {[%clk 0:02:33.5]} 13... Bg4 {[%clk
0:01:30.9]} 14. f3 {[%clk 0:02:21.3]} 14... Nxd3+ {[%clk 0:01:19.6]} 15. Qxd3
{[%clk 0:02:22.2]} 15... Be6 {[%clk 0:01:11.8]} 16. g4 {[%clk 0:02:15.2]} 16...
Rad8 {[%clk 0:00:53.9]} 17. g5 {[%clk 0:02:00]} 17... dxe4 {[%clk 0:00:53.6]}
18. Qc2 {[%clk 0:02:00.5]} 18... Nd5 {[%clk 0:00:46.4]} 19. Nxe4 {[%clk
0:01:59.2]} 19... f5 {[%clk 0:00:27.3]} 20. gxf6 {[%clk 0:01:57.3]} 20... gxf6
{[%clk 0:00:27.1]} 21. Nec5 {[%clk 0:01:26.4]} 21... Bc8 {[%clk 0:00:26.8]} 22.
Qf2 {[%clk 0:00:38.4]} 22... b6 {[%clk 0:00:24.2]} 23. Ne4 {[%clk 0:00:38.9]}
23... Nf4 {[%clk 0:00:24.2]} 24. O-O {[%clk 0:00:33.7]} 24... Ba6 {[%clk
0:00:23]} 25. Rfd1 {[%clk 0:00:32.9]} 25... Qg7 {[%clk 0:00:19.9]} 26. Ng3
{[%clk 0:00:11.8]} 26... Nd3 {[%clk 0:00:19.7]} 27. Rxd3 {[%clk 0:00:07.4]}
27... Bxd3 {[%clk 0:00:20.6]} 28. Re1 {[%clk 0:00:04.6]} 28... Bg6 {[%clk
0:00:20.3]} 29. Nd2 {[%clk 0:00:03.7]} 29... Qf7 {[%clk 0:00:18.6]} 30. Nde4
{[%clk 0:00:04]} 30... Qxa2 {[%clk 0:00:18.7]} 31. Qe3 {[%clk 0:00:03.8]} 31...
Qf7 {[%clk 0:00:18.3]} 32. Qh6 {[%clk 0:00:03.8]} 32... Qg7 {[%clk 0:00:18.3]}
33. Qh4 {[%clk 0:00:03.6]} 33... Rde8 {[%clk 0:00:18.4]} 34. Rd1 {[%clk
0:00:03.5]} 34... Rd8 {[%clk 0:00:18.7]} 35. Nd6 {[%clk 0:00:03.6]} 35... Qe7
{[%clk 0:00:17.6]} 36. Nge4 {[%clk 0:00:02.8]} 36... Bxe4 {[%clk 0:00:17.3]} 0-1

[Event "*** SCC Grand Prix: Titled Tuesday Blitz"]
[Site "Chess.com"]
[Date "2020.08.25"]
[Round "8"]
[White "blitzking1729"]
[Black "kuban1991"]
[Result "1/2-1/2"]
[WhiteElo "2675"]
[BlackElo "2803"]
[TimeControl "180+1"]
[EndTime "11:36:30 PDT"]
[Termination "Game drawn by repetition"]

1. d4 {[%clk 0:03:00.9]} 1... g6 {[%clk 0:03:00]} 2. Nf3 {[%clk 0:02:57.9]} 2...
Bg7 {[%clk 0:02:59.9]} 3. c3 {[%clk 0:02:56.1]} 3... Nf6 {[%clk 0:02:59.5]} 4.
Bg5 {[%clk 0:02:55]} 4... Ne4 {[%clk 0:02:58.9]} 5. Bf4 {[%clk 0:02:54.3]} 5...
d5 {[%clk 0:02:59.4]} 6. Nbd2 {[%clk 0:02:54.3]} 6... O-O {[%clk 0:03:00]} 7. e3
{[%clk 0:02:52]} 7... c5 {[%clk 0:03:00.1]} 8. Bd3 {[%clk 0:02:51.4]} 8... Bf5
{[%clk 0:02:59]} 9. Qb1 {[%clk 0:02:51]} 9... Nxd2 {[%clk 0:02:58.7]} 10. Nxd2
{[%clk 0:02:50.4]} 10... Bxd3 {[%clk 0:02:58.8]} 11. Qxd3 {[%clk 0:02:50.3]}
11... Qb6 {[%clk 0:02:59]} 12. Rb1 {[%clk 0:02:49.2]} 12... Nc6 {[%clk
0:02:58.5]} 13. O-O {[%clk 0:02:47.9]} 13... a5 {[%clk 0:02:58.5]} 14. dxc5
{[%clk 0:02:45.2]} 14... Qxc5 {[%clk 0:02:59.4]} 15. e4 {[%clk 0:02:45.4]} 15...
Rfd8 {[%clk 0:02:50.2]} 16. exd5 {[%clk 0:02:38.5]} 16... Rxd5 {[%clk
0:02:47.7]} 17. Qe2 {[%clk 0:02:37.9]} 17... e5 {[%clk 0:02:40.8]} 18. Be3
{[%clk 0:02:37.1]} 18... Qe7 {[%clk 0:02:35.4]} 19. Nc4 {[%clk 0:02:36.4]} 19...
Rad8 {[%clk 0:02:32.7]} 20. Rfd1 {[%clk 0:02:33.9]} 20... Qe6 {[%clk 0:02:28.1]}
21. b3 {[%clk 0:02:27.8]} 21... h5 {[%clk 0:02:23.8]} 22. Bb6 {[%clk 0:02:19.4]}
22... Rxd1+ {[%clk 0:02:17.9]} 23. Rxd1 {[%clk 0:02:19]} 23... Rxd1+ {[%clk
0:02:18.8]} 24. Qxd1 {[%clk 0:02:19.2]} 24... e4 {[%clk 0:02:19.7]} 25. Nxa5
{[%clk 0:02:13.7]} 25... Nxa5 {[%clk 0:02:18]} 26. Bxa5 {[%clk 0:02:12.5]} 26...
e3 {[%clk 0:02:18.5]} 27. fxe3 {[%clk 0:02:08.4]} 27... Qxe3+ {[%clk 0:02:19.4]}
28. Kh1 {[%clk 0:02:07]} 28... Be5 {[%clk 0:02:02]} 29. c4 {[%clk 0:01:52.9]}
29... Qf4 {[%clk 0:01:56.7]} 30. Qg1 {[%clk 0:01:50.4]} 30... h4 {[%clk
0:01:56.5]} 31. Bb6 {[%clk 0:01:38.5]} 31... Qe4 {[%clk 0:01:46.1]} 32. h3
{[%clk 0:01:18.7]} 32... Qc2 {[%clk 0:01:43.4]} 33. Qe1 {[%clk 0:01:13.2]} 33...
Bf6 {[%clk 0:01:25.1]} 34. Bc7 {[%clk 0:00:54.8]} 34... Qxa2 {[%clk 0:01:17.1]}
35. Qe3 {[%clk 0:00:46.9]} 35... Qa1+ {[%clk 0:01:13.5]} 36. Qg1 {[%clk
0:00:42.5]} 36... Qb2 {[%clk 0:01:10]} 37. Qd1 {[%clk 0:00:35.4]} 37... Kg7
{[%clk 0:00:53]} 38. Bd8 {[%clk 0:00:28.8]} 38... Bxd8 {[%clk 0:00:23.3]} 39.
Qxd8 {[%clk 0:00:27.9]} 39... Qxb3 {[%clk 0:00:17.7]} 40. Qd4+ {[%clk
0:00:26.7]} 40... Kg8 {[%clk 0:00:16.8]} 41. Qd8+ {[%clk 0:00:26.4]} 41... Kg7
{[%clk 0:00:17.1]} 42. Qd4+ {[%clk 0:00:26.1]} 42... Kg8 {[%clk 0:00:17.3]} 43.
Qd8+ {[%clk 0:00:25.9]} 43... Kg7 {[%clk 0:00:17.6]} 1/2-1/2

[Event "*** SCC Grand Prix: Titled Tuesday Blitz"]
[Site "Chess.com"]
[Date "2020.08.25"]
[Round "8"]
[White "margarita_2703"]
[Black "ChessicallyInclined"]
[Result "1-0"]
[WhiteElo "2418"]
[BlackElo "2511"]
[TimeControl "180+1"]
[EndTime "11:36:31 PDT"]
[Termination "margarita_2703 won on time"]

1. Nf3 {[%clk 0:03:00.9]} 1... Nf6 {[%clk 0:02:57.4]} 2. d4 {[%clk 0:03:00.5]}
2... b6 {[%clk 0:02:48.3]} 3. c4 {[%clk 0:02:58.8]} 3... e6 {[%clk 0:02:41.9]}
4. Nc3 {[%clk 0:02:58.8]} 4... Bb7 {[%clk 0:02:37.1]} 5. Bg5 {[%clk 0:02:59.3]}
5... d5 {[%clk 0:02:34.2]} 6. Rc1 {[%clk 0:02:53]} 6... Be7 {[%clk 0:02:33.4]}
7. e3 {[%clk 0:02:49.7]} 7... O-O {[%clk 0:02:32.4]} 8. Bd3 {[%clk 0:02:49.2]}
8... Nbd7 {[%clk 0:02:32.1]} 9. O-O {[%clk 0:02:48.8]} 9... c5 {[%clk
0:02:32.2]} 10. Ne5 {[%clk 0:02:40.4]} 10... Nxe5 {[%clk 0:02:30]} 11. dxe5
{[%clk 0:02:40.1]} 11... Nd7 {[%clk 0:02:30]} 12. Bxe7 {[%clk 0:02:39.1]} 12...
Qxe7 {[%clk 0:02:30.9]} 13. Bb1 {[%clk 0:02:23.9]} 13... dxc4 {[%clk 0:02:21]}
14. Nb5 {[%clk 0:02:09.2]} 14... Qg5 {[%clk 0:02:08.5]} 15. e4 {[%clk
0:01:54.7]} 15... Rad8 {[%clk 0:01:51.7]} 16. Nd6 {[%clk 0:01:54.2]} 16... Ba6
{[%clk 0:01:34.2]} 17. f4 {[%clk 0:01:50.2]} 17... Qe7 {[%clk 0:01:31.9]} 18.
Qa4 {[%clk 0:01:48.3]} 18... Nb8 {[%clk 0:01:23]} 19. Qc2 {[%clk 0:01:30.4]}
19... Nc6 {[%clk 0:01:18.6]} 20. Nxc4 {[%clk 0:01:27.2]} 20... Nd4 {[%clk
0:01:18]} 21. Qf2 {[%clk 0:01:23.7]} 21... Bxc4 {[%clk 0:01:15.1]} 22. Rxc4
{[%clk 0:01:22.8]} 22... b5 {[%clk 0:01:16]} 23. Rcc1 {[%clk 0:01:21.4]} 23...
c4 {[%clk 0:01:16.1]} 24. Rfe1 {[%clk 0:01:19.4]} 24... Rd7 {[%clk 0:01:02.8]}
25. f5 {[%clk 0:01:19.2]} 25... Qc5 {[%clk 0:00:55.3]} 26. b3 {[%clk 0:01:00.5]}
26... c3 {[%clk 0:00:43.2]} 27. b4 {[%clk 0:00:55.8]} 27... Qxb4 {[%clk
0:00:41.1]} 28. f6 {[%clk 0:00:55.6]} 28... g6 {[%clk 0:00:33.9]} 29. Qe3 {[%clk
0:00:49.5]} 29... Rc8 {[%clk 0:00:30.7]} 30. Red1 {[%clk 0:00:48.6]} 30... c2
{[%clk 0:00:22.2]} 31. Bxc2 {[%clk 0:00:48.2]} 31... Nxc2 {[%clk 0:00:20.1]} 32.
Rxd7 {[%clk 0:00:46.5]} 32... Qc4 {[%clk 0:00:12.1]} 33. Qd3 {[%clk 0:00:40.9]}
33... Qc5+ {[%clk 0:00:11.8]} 34. Kh1 {[%clk 0:00:40.5]} 34... h5 {[%clk
0:00:04.1]} 35. Rd8+ {[%clk 0:00:39.7]} 35... Rxd8 {[%clk 0:00:04.1]} 36. Qxd8+
{[%clk 0:00:39.3]} 36... Kh7 {[%clk 0:00:04.8]} 37. Qe7 {[%clk 0:00:35.2]} 37...
Qe3 {[%clk 0:00:04.8]} 38. Qxf7+ {[%clk 0:00:30.5]} 38... Kh6 {[%clk 0:00:05.1]}
39. Rg1 {[%clk 0:00:25.9]} 39... Ne1 {[%clk 0:00:03.4]} 40. h4 {[%clk
0:00:20.9]} 1-0

[Event "*** SCC Grand Prix: Titled Tuesday Blitz"]
[Site "Chess.com"]
[Date "2020.08.25"]
[Round "8"]
[White "allvim"]
[Black "remi04"]
[Result "0-1"]
[WhiteElo "2422"]
[BlackElo "2591"]
[TimeControl "180+1"]
[EndTime "11:36:31 PDT"]
[Termination "remi04 won on time"]

1. e4 {[%clk 0:02:59.9]} 1... c5 {[%clk 0:02:58.2]} 2. Nf3 {[%clk 0:02:59.2]}
2... d6 {[%clk 0:02:58.5]} 3. d4 {[%clk 0:02:59.2]} 3... cxd4 {[%clk 0:02:58.9]}
4. Nxd4 {[%clk 0:03:00.1]} 4... Nf6 {[%clk 0:02:59.5]} 5. Nc3 {[%clk 0:03:00.3]}
5... a6 {[%clk 0:03:00.1]} 6. Be2 {[%clk 0:03:00.6]} 6... e6 {[%clk 0:02:58.6]}
7. Be3 {[%clk 0:03:00]} 7... Be7 {[%clk 0:02:58.4]} 8. O-O {[%clk 0:02:59.6]}
8... O-O {[%clk 0:02:56.2]} 9. f4 {[%clk 0:03:00.1]} 9... Nbd7 {[%clk
0:02:56.3]} 10. a4 {[%clk 0:02:58.7]} 10... b6 {[%clk 0:02:55.5]} 11. Bf3 {[%clk
0:02:58.5]} 11... Bb7 {[%clk 0:02:55.8]} 12. Qd2 {[%clk 0:02:33]} 12... Qc7
{[%clk 0:02:49.7]} 13. Rad1 {[%clk 0:02:28.5]} 13... Rfd8 {[%clk 0:02:42.1]} 14.
f5 {[%clk 0:02:16.2]} 14... e5 {[%clk 0:02:39.5]} 15. Nde2 {[%clk 0:02:15.2]}
15... d5 {[%clk 0:02:30.1]} 16. Nxd5 {[%clk 0:02:06]} 16... Nxd5 {[%clk
0:02:18]} 17. exd5 {[%clk 0:02:05.7]} 17... Nf6 {[%clk 0:02:18.4]} 18. Nc3
{[%clk 0:01:47.8]} 18... Rac8 {[%clk 0:02:03.4]} 19. Qf2 {[%clk 0:01:47.3]}
19... Bc5 {[%clk 0:01:54.5]} 20. d6 {[%clk 0:01:13.3]} 20... Rxd6 {[%clk
0:01:45.8]} 21. Rxd6 {[%clk 0:01:05]} 21... Bxd6 {[%clk 0:01:34.3]} 22. Bxb6
{[%clk 0:00:58.3]} 22... Qe7 {[%clk 0:01:34.4]} 23. Bxb7 {[%clk 0:00:45.3]}
23... Qxb7 {[%clk 0:01:34.7]} 24. a5 {[%clk 0:00:45.3]} 24... Bb4 {[%clk
0:01:29.9]} 25. Qe3 {[%clk 0:00:36.2]} 25... Nd7 {[%clk 0:01:14.7]} 26. Kh1
{[%clk 0:00:18.4]} 26... h6 {[%clk 0:00:32.5]} 27. f6 {[%clk 0:00:13.1]} 27...
Nxf6 {[%clk 0:00:30.6]} 28. Qxe5 {[%clk 0:00:11.9]} 28... Bxc3 {[%clk
0:00:25.6]} 29. bxc3 {[%clk 0:00:11.2]} 29... Nd7 {[%clk 0:00:21.5]} 30. Qe3
{[%clk 0:00:09.8]} 30... Qc6 {[%clk 0:00:20.3]} 31. Bd4 {[%clk 0:00:08.7]} 31...
Nf8 {[%clk 0:00:19.6]} 32. Qe5 {[%clk 0:00:08.3]} 32... Ne6 {[%clk 0:00:19.9]}
33. Re1 {[%clk 0:00:07.7]} 33... Nxd4 {[%clk 0:00:19.5]} 34. Qxd4 {[%clk
0:00:08.6]} 34... Qxc3 {[%clk 0:00:19.4]} 35. Re8+ {[%clk 0:00:05.4]} 35... Kh7
{[%clk 0:00:19.3]} 36. Qe4+ {[%clk 0:00:05.3]} 36... g6 {[%clk 0:00:19.4]} 37.
Rxc8 {[%clk 0:00:05.3]} 37... Qa1+ {[%clk 0:00:19.4]} 0-1

[Event "*** SCC Grand Prix: Titled Tuesday Blitz"]
[Site "Chess.com"]
[Date "2020.08.25"]
[Round "8"]
[White "Yana_pro"]
[Black "Rhinos1"]
[Result "0-1"]
[WhiteElo "2083"]
[BlackElo "2236"]
[TimeControl "180+1"]
[EndTime "11:36:31 PDT"]
[Termination "Rhinos1 won by resignation"]

1. Nf3 {[%clk 0:03:00.9]} 1... Nf6 {[%clk 0:02:49.8]} 2. g3 {[%clk 0:03:01.8]}
2... d6 {[%clk 0:02:49.4]} 3. Bg2 {[%clk 0:03:02.5]} 3... Nbd7 {[%clk
0:02:49.6]} 4. O-O {[%clk 0:03:03.1]} 4... c6 {[%clk 0:02:50]} 5. d3 {[%clk
0:03:03.3]} 5... e5 {[%clk 0:02:50]} 6. c4 {[%clk 0:02:56.5]} 6... Be7 {[%clk
0:02:49.3]} 7. Nc3 {[%clk 0:02:56.9]} 7... O-O {[%clk 0:02:48.9]} 8. b4 {[%clk
0:02:57.4]} 8... Qc7 {[%clk 0:02:48.8]} 9. b5 {[%clk 0:02:55.6]} 9... a6 {[%clk
0:02:36.1]} 10. Bd2 {[%clk 0:02:48.9]} 10... Nc5 {[%clk 0:02:28.9]} 11. a4
{[%clk 0:02:46.8]} 11... e4 {[%clk 0:02:24.7]} 12. Ne1 {[%clk 0:02:40.5]} 12...
exd3 {[%clk 0:02:19.3]} 13. exd3 {[%clk 0:02:41.4]} 13... Bg4 {[%clk 0:02:15.1]}
14. f3 {[%clk 0:02:31.1]} 14... Bf5 {[%clk 0:02:12.9]} 15. d4 {[%clk 0:02:31.3]}
15... Nd3 {[%clk 0:02:10.1]} 16. Nxd3 {[%clk 0:02:30.6]} 16... Bxd3 {[%clk
0:02:09.6]} 17. Re1 {[%clk 0:02:28.6]} 17... Bxc4 {[%clk 0:02:09.4]} 18. b6
{[%clk 0:02:15.9]} 18... Qd7 {[%clk 0:02:04.4]} 19. a5 {[%clk 0:02:15.6]} 19...
Rae8 {[%clk 0:01:58.2]} 20. Qa4 {[%clk 0:02:07.5]} 20... Bd5 {[%clk 0:01:46.3]}
21. Bg5 {[%clk 0:02:05.8]} 21... Qf5 {[%clk 0:01:41.9]} 22. Bf4 {[%clk
0:01:56.8]} 22... g5 {[%clk 0:01:29.5]} 23. Be3 {[%clk 0:01:48.8]} 23... h6
{[%clk 0:01:20.4]} 24. Rf1 {[%clk 0:01:47.8]} 24... Qd3 {[%clk 0:01:19.6]} 25.
Nd1 {[%clk 0:01:44.8]} 25... Bd8 {[%clk 0:01:05.5]} 26. Ra3 {[%clk 0:01:42.6]}
26... Qb5 {[%clk 0:00:54.3]} 27. Qc2 {[%clk 0:01:31.7]} 27... Bc4 {[%clk
0:00:42.2]} 28. Re1 {[%clk 0:01:26.3]} 28... Nd5 {[%clk 0:00:41.1]} 29. Nc3
{[%clk 0:01:11.9]} 29... Nxc3 {[%clk 0:00:37.9]} 30. Qxc3 {[%clk 0:01:03.9]}
30... Bf6 {[%clk 0:00:37.2]} 31. h4 {[%clk 0:01:00.7]} 31... Re6 {[%clk
0:00:25.5]} 32. hxg5 {[%clk 0:00:59.1]} 32... hxg5 {[%clk 0:00:26.4]} 33. Bh3
{[%clk 0:00:57.4]} 33... Re7 {[%clk 0:00:21.1]} 34. Rc1 {[%clk 0:00:48]} 34...
Bd5 {[%clk 0:00:19.3]} 35. Bg4 {[%clk 0:00:40.6]} 35... Rfe8 {[%clk 0:00:18.8]}
36. Qd2 {[%clk 0:00:40.9]} 36... Bc4 {[%clk 0:00:15.9]} 37. Rac3 {[%clk
0:00:31.2]} 37... Be6 {[%clk 0:00:15.1]} 38. R3c2 {[%clk 0:00:31.2]} 38... Bxg4
{[%clk 0:00:14.5]} 39. Bxg5 {[%clk 0:00:30.5]} 39... Qxg5 {[%clk 0:00:12.1]} 40.
f4 {[%clk 0:00:30.6]} 40... Qg6 {[%clk 0:00:11.3]} 41. d5 {[%clk 0:00:30.4]}
41... Bf5 {[%clk 0:00:11.2]} 42. Rc4 {[%clk 0:00:26]} 42... Qxg3+ {[%clk
0:00:11.1]} 43. Qg2 {[%clk 0:00:22.2]} 43... Re1+ {[%clk 0:00:11.5]} 0-1